[Event "Gibraltar Amateurs B 2019"]
[Site "Caleta"]
[Date "2019.01.27"]
[Round "2"]
[White "Fong, Mi Yen"]
[Black "Bosschem, Eddy"]
[Result "0-1"]
[ECO "D48"]
[WhiteElo "1687"]
[BlackElo "1847"]
[Annotator "NA"]
[PlyCount "66"]
[EventDate "2019.01.18"]
[EventType "swiss"]
[EventCountry "GGB"]
[SourceTitle "playchess.com"]
[Source "ChessBase"]
[SourceQuality "1"]
[TimeControl "6600+10"]

1. d4 {[%emt 0:00:00]} d5 {[%emt 0:00:00]} 2. c4 {[%emt 0:00:28]} c6 {[%emt 0:00:02]} 3. Nc3 {[%emt 0:01:31]} Nf6 {[%emt 0:00:08]} 4. e3 {[%emt 0:00:30]} e6 {[%emt 0:08:31]} 5. Nf3 {[%emt 0:01:26]} Nbd7 {[%emt 0:00:44]} 6. Bd3 {[%emt 0:02:14]} dxc4 {[%emt 0:01:00]} 7. Bxc4 {[%emt 0:00:06]} b5 {[%emt 0:00:07]} 8. Bd3 {[%emt 0:00:56]} a6 {[%emt 0:00:36]} 9. O-O {[%emt 0:02:09]} c5 {[%emt 0:01:42]} 10. b3 {[%emt 0:04:13]} Bb7 {[%emt 0:04:28]} 11. Re1 {[%emt 0:00:58]} Qb6 {[%emt 0:00:40]} 12. Be2 {[%emt 0:01:24]} Be7 {[%emt 0:01:02]} 13. Bb2 {[%emt 0:02:26]} O-O {[%emt 0:00:15]} 14. Qd2 {[%emt 0:06:06]} Rfd8 {[%emt 0:02:04]} 15. Rad1 {[%emt 0:02:13]} Rac8 $17 {[%emt 0:01:51]} 16. Ba1 {[%emt 0:02:39]} cxd4 {[%emt 0:05:24]} 17. exd4 {[%emt 0:05:00]} Bb4 {[%emt 0:04:29]} 18. Qe3 {[%emt 0:02:26]} Ng4 {[%emt 0:21:07]} 19. Qg5 {[%emt 0:05:49]} Nxf2 {[%emt 0:06:18]} 20. Kxf2 {[%emt 0:00:19]} Bxc3 {[%emt 0:00:18]} 21. Bxc3 {[%emt 0:01:19]} Rxc3 {[%emt 0:00:11]} 22. Kg1 {[%emt 0:04:15]} Nf6 {[%emt 0:00:39]} 23. Qf4 {[%emt 0:04:48]} Nd5 {[%emt 0:06:45]} 24. Qd2 {[%emt 0:02:26]} Rdc8 {[%emt 0:01:37]} 25. Bd3 {[%emt 0:05:32]} h6 {[%emt 0:00:27]} 26. Kh1 {[%emt 0:00:48]} Qd6 {[%emt 0:07:06]} 27. Qf2 {[%emt 0:04:07]} Nf4 {[%emt 0:03:32]} 28. Be4 {[%emt 0:04:21]} Bxe4 {[%emt 0:01:48]} 29. Rxe4 {[%emt 0:00:07]} Nd5 {[%emt 0:05:23]} 30. Ne5 {[%emt 0:01:05]} Nf6 {[%emt 0:00:10]} 31. Rf4 {[%emt 0:06:11]} Rc1 {[%emt 0:00:38]} 32. Rf1 {[%emt 0:00:27]} R8c2 {[%emt 0:01:29]} 33. Qh4 {[%emt 0:03:31]} Qxd4 {[%emt 0:04:31]} 0-1

[Event "Gibraltar Amateurs B 2019"]
[Site "Caleta"]
[Date "2019.01.28"]
[Round "3"]
[White "Pink, Joshua"]
[Black "Parker, Keith"]
[Result "1-0"]
[ECO "B12"]
[WhiteElo "1890"]
[BlackElo "1810"]
[Annotator "NA"]
[PlyCount "91"]
[EventDate "2019.01.18"]
[EventType "swiss"]
[EventCountry "GGB"]
[SourceTitle "playchess.com"]
[Source "ChessBase"]
[SourceQuality "1"]
[TimeControl "6600+10"]

{[%evp 13,89,22,32767,35,32767,32767,32767,32767,53,6,32767,32767,32767,-47,32767,32767,32767,32767,32767,-157,-139,32767,32767,-198,-182,32767,32767,32767,32767,32767,32767,32767,32767,32767,32767,32767,135,32767,32767,32767,139,0,32767,-17,32767,32767,0,32767,297,333,381,441,450,438,572,691,723,727,1641,1879,2797,1719,2538,5085,1038,5089,5073,29977,29991,29992,29993,29993,29994,32767,32767,32767,32767,29997]} 1. e4 {[%emt 0:00:46]} c6 {[%emt 0:00:08]} 2. d4 {[%emt 0:00:04]} d5 {[%emt 0:00:16]} 3. e5 {[%emt 0:00:02]} Bf5 {[%emt 0:00:29]} 4. Nc3 {[%emt 0:00:05]} e6 {[%emt 0:00:27]} 5. g4 {[%emt 0:00:03]} Bg6 {[%emt 0:00:36]} 6. Nge2 {[%emt 0:00:03]} h6 {[%emt 0:03:49]} 7. h4 {[%emt 0:00:22] LiveBook: 9 Games} Qb6 {[%emt 0:03:25] B12: Caro-Kann: Advance Variation} (7... Be7 8. h5 Bh7 9. Be3 Nd7 10. Qd2 Nb6 11. Ng3 Bg5 12. f4 Bh4 13. Rh3 Bxg3+ 14. Rxg3 Ne7 15. b3 {1-0 (47) Kriebel,T (2461)-Gunina,V (2529) Novy Bor 2015}) 8. h5 {[%emt 0:01:02]} Bh7 {[%emt 0:00:23]} 9. a4 $146 {[%emt 0:09:37]} ({Predecessor:} 9. Bg2 c5 10. O-O Nc6 11. dxc5 Bxc5 12. Na4 Qa5 13. c3 Qb5 14. Nxc5 Qxc5 {1-0 (44) Muratovic,E (2213)-Kurtcehajic,S (2053) Prijedor 2015}) 9... Nd7 {[%emt 0:11:28]} 10. a5 {[%emt 0:00:12]} Qd8 {[%emt 0:05:46]} 11. Bg2 {[%emt 0:01:23]} Bb4 {[%emt 0:02:28]} 12. O-O {[%emt 0:03:26]} Bxa5 {[%emt 0:02:53]} 13. f4 {[%emt 0:01:49]} Bb6 {[%emt 0:09:22]} 14. Be3 {[%emt 0:02:19]} Ne7 {[%emt 0:04:01]} 15. Qd2 {[%emt 0:00:41]} O-O {[%emt 0:14:25]} 16. Ng3 {[%emt 0:00:47]} (16. Na4 $11) 16... c5 {[%emt 0:02:03]} 17. Nb5 {[%emt 0:03:50]} cxd4 {[%emt 0:00:33]} 18. Nxd4 {[%emt 0:01:12] [#]} Nc6 $1 {[%emt 0:03:14]} 19. c3 {[%emt 0:03:37]} Qh4 {[%emt 0:05:51]} 20. Bf2 {[%emt 0:10:45]} Nxd4 {[%emt 0:03:27]} 21. cxd4 {[%emt 0:00:23]} Qxg4 {[%emt 0:01:24]} 22. Qe3 {[%emt 0:02:55]} Rac8 {[%emt 0:12:06]} 23. Bf3 {[%emt 0:00:42]} Qh3 {[%emt 0:00:21]} 24. Rac1 {[%emt 0:02:32]} Qh4 $2 {[%emt 0:04:24]} (24... Rxc1 $19 25. Rxc1 Kh8) 25. Nf5 {[%emt 0:05:03]} Qxf2+ {[%emt 0:04:56]} 26. Kxf2 {[%emt 0:01:36]} Bxf5 {[%emt 0:00:03]} 27. Qd2 {[%emt 0:00:58]} (27. b4 $16) 27... Nb8 {[%emt 0:00:39]} 28. Rxc8 $1 {[%emt 0:00:31]} Rxc8 {[%emt 0:00:01]} 29. Rc1 {[%emt 0:01:53]} Nc6 {[%emt 0:02:49]} 30. Kg3 {[%emt 0:01:17]} Bxd4 $2 {[%emt 0:00:06] [#]} (30... Rb8 $11 {and Black has nothing to worry.}) 31. Rxc6 $1 {[%emt 0:00:49]} Rxc6 {[%emt 0:04:01]} 32. Qxd4 {[%emt 0:00:08]} Rb6 {[%emt 0:00:25]} 33. b4 {[%emt 0:01:20]} Kh7 {[%emt 0:00:05]} (33... Ra6 {was worth a try.} 34. b5 Ra3) 34. Be2 {[%emt 0:00:20]} g6 {[%emt 0:00:33]} 35. hxg6+ {[%emt 0:00:14]} fxg6 {[%emt 0:00:30]} 36. b5 {[%emt 0:00:07]} g5 {[%emt 0:00:56]} 37. fxg5 {[%emt 0:00:39]} hxg5 {[%emt 0:00:02]} 38. Bd3 {[%emt 0:00:28]} Kg6 {[%emt 0:00:22]} 39. Bxf5+ {[%emt 0:00:08]} Kxf5 {[%emt 0:00:38]} 40. Kf3 {[%emt 0:00:22]} Kg6 {[%emt 0:00:31]} 41. Kg4 {[%emt 0:01:19]} Kh6 {[%emt 0:00:27]} 42. Qc5 {[%emt 0:00:09]} d4 {[%emt 0:00:59]} 43. Qf8+ {[%emt 0:00:11]} Kg6 {[%emt 0:00:32]} 44. Qf6+ {[%emt 0:00:34]} Kh7 {[%emt 0:00:06]} 45. Kxg5 {[%emt 0:00:07]} d3 {[%emt 0:00:21]} 46. Qf7+ {[%emt 0:00:07]} 1-0

[Event "Gibraltar Amateurs B 2019"]
[Site "Caleta"]
[Date "2019.01.28"]
[Round "3"]
[White "Lochte, Szilvia"]
[Black "Andersen, Guttorm"]
[Result "1-0"]
[ECO "A13"]
[WhiteElo "1868"]
[BlackElo "1801"]
[Annotator "NA"]
[PlyCount "95"]
[EventDate "2019.01.18"]
[EventType "swiss"]
[EventCountry "GGB"]
[SourceTitle "playchess.com"]
[Source "ChessBase"]
[SourceQuality "1"]
[TimeControl "6600+10"]

1. c4 {[%emt 0:00:00]} c6 {[%emt 0:09:11]} 2. g3 {[%emt 0:01:13]} Nf6 {[%emt 0:00:24]} 3. Bg2 {[%emt 0:00:15]} d5 {[%emt 0:00:26]} 4. Nf3 {[%emt 0:00:51]} e6 {[%emt 0:00:17]} 5. O-O {[%emt 0:02:11]} Bd6 {[%emt 0:01:46]} 6. d3 {[%emt 0:02:19]} O-O {[%emt 0:00:55]} 7. Nc3 {[%emt 0:00:26]} Nbd7 {[%emt 0:02:43]} 8. a3 {[%emt 0:05:18]} a5 {[%emt 0:04:11]} 9. Rb1 {[%emt 0:01:24] A13: English Opening: 1...e6} Qe7 {[%emt 0:01:10]} 10. Nd4 $146 {[%emt 0:07:21]} ({Predecessor:} 10. Bd2 Re8 11. Qc2 Nb6 12. Na2 {1-0 (55) Gajin,N (2088)-Kovacevic,S (2221) Novi Banovci 2017}) 10... Re8 {[%emt 0:12:16]} 11. cxd5 {[%emt 0:06:02]} Nxd5 {[%emt 0:03:04]} 12. Nxd5 {[%emt 0:03:12]} exd5 {[%emt 0:03:56]} 13. Nf5 {[%emt 0:01:41]} Qe6 {[%emt 0:03:53]} 14. Nxd6 {[%emt 0:00:23]} Qxd6 {[%emt 0:00:08]} 15. Bf4 {[%emt 0:00:13]} Qe7 {[%emt 0:00:55]} 16. Be3 {[%emt 0:08:08]} Nc5 {[%emt 0:05:20]} 17. Rc1 {[%emt 0:06:06]} Ne6 {[%emt 0:00:26]} 18. Bd2 {[%emt 0:09:15]} Ng5 {[%emt 0:02:41]} 19. Qc2 {[%emt 0:03:45]} Bd7 {[%emt 0:02:25]} 20. e3 {[%emt 0:05:19]} Bh3 {[%emt 0:05:01]} 21. f4 {[%emt 0:06:35]} Bxg2 {[%emt 0:00:47]} 22. Kxg2 {[%emt 0:00:05]} Ne6 {[%emt 0:00:19]} 23. a4 {[%emt 0:03:13]} f5 {[%emt 0:00:37]} 24. Rfe1 {[%emt 0:02:40]} Nf8 {[%emt 0:02:35]} 25. Qb3 {[%emt 0:01:30]} Kh8 {[%emt 0:01:35]} 26. Bc3 {[%emt 0:08:07]} h6 {[%emt 0:15:26]} 27. Bd4 {[%emt 0:05:37]} Nh7 {[%emt 0:02:49]} 28. Qc3 {[%emt 0:01:14]} Nf6 {[%emt 0:03:58]} 29. Qb3 {[%emt 0:07:52]} Kh7 {[%emt 0:01:15]} 30. h3 {[%emt 0:01:04]} Qb4 {[%emt 0:07:59]} (30... h5 $11) 31. Qxb4 {[%emt 0:02:04]} axb4 {[%emt 0:00:05]} 32. b3 $1 {[%emt 0:00:35]} Nd7 {[%emt 0:00:07]} 33. Kf3 {[%emt 0:00:26]} Re6 {[%emt 0:01:10]} 34. e4 {[%emt 0:01:03]} Rae8 {[%emt 0:01:20]} 35. e5 {[%emt 0:00:12]} b6 {[%emt 0:00:20]} 36. Bf2 {[%emt 0:01:17]} c5 {[%emt 0:01:49] [#]} (36... g5 $16 37. d4 Rc8) 37. a5 $2 {[%emt 0:01:09]} (37. d4 $1 $18) 37... d4 {[%emt 0:01:29]} 38. Ra1 {[%emt 0:01:26]} Ra8 {[%emt 0:02:46]} (38... bxa5 $14 39. Rxa5 g5) 39. axb6 {[%emt 0:00:15]} Rxa1 {[%emt 0:00:34]} (39... Ra3 $16 {keeps fighting.}) 40. Rxa1 {[%emt 0:00:04]} Rxb6 {[%emt 0:01:15]} 41. Ra7 {[%emt 0:00:25]} Nf8 {[%emt 0:01:13]} 42. g4 {[%emt 0:00:36]} fxg4+ {[%emt 0:01:57]} 43. hxg4 {[%emt 0:00:04]} Ne6 {[%emt 0:02:43]} 44. Ke4 {[%emt 0:00:18]} Nd8 {[%emt 0:01:25]} 45. f5 $18 {[%emt 0:00:26]} Kg8 {[%emt 0:00:12]} 46. Ra8 {[%emt 0:00:19]} Kf7 {[%emt 0:00:33]} 47. Rxd8 {[%emt 0:00:07]} Ra6 {[%emt 0:00:08]} 48. e6+ {[%emt 0:00:18]} 1-0

[Event "Gibraltar Amateurs B 2019"]
[Site "Caleta"]
[Date "2019.01.28"]
[Round "3"]
[White "Robson, Paul E"]
[Black "Sharma Pankaj"]
[Result "0-1"]
[ECO "C00"]
[WhiteElo "1861"]
[BlackElo "1809"]
[Annotator "NA"]
[PlyCount "106"]
[EventDate "2019.01.18"]
[EventType "swiss"]
[EventCountry "GGB"]
[SourceTitle "playchess.com"]
[Source "ChessBase"]
[SourceQuality "1"]
[TimeControl "6600+10"]

{[%evp 23,106,-53,32767,32767,32767,32767,32767,32767,32767,90,32767,32767,32767,32767,32767,32767,32767,32767,32767,32767,32767,32767,32767,32767,32767,32767,32767,32767,32767,80,32767,32767,32767,32767,32767,125,147,32767,137,144,164,156,160,146,139,134,135,106,138,57,50,-162,-155,-116,-168,-189,-177,-782,-784,-347,-890,-861,-881,32767,32767,32767,32767,-785,-768,-984,-1334,-1099,-1000,-1521,32767,-4610,32767,-1731,-12845,-1832,-29989,-6087,-29991,-29991,-29992]} 1. e4 {[%emt 0:00:00]} e6 {[%emt 0:00:00]} 2. Qe2 {[%emt 0:00:27]} c5 {[%emt 0:00:00]} 3. f4 {[%emt 0:00:06]} Nc6 {[%emt 0:00:28]} 4. Nf3 {[%emt 0:00:07]} g6 {[%emt 0:01:04]} 5. d3 {[%emt 0:01:34] C00: French: Unusual White 2nd moves} (5. g3 Bg7 6. c3 Nge7 7. Bg2 O-O 8. O-O d6 9. Na3 e5 10. d3 h6 11. f5 gxf5 12. Nh4 fxe4 13. dxe4 Be6 {½-½ (30) Fedorov,A (2572)-Stupak,K (2565) Minsk 2018}) 5... Bg7 {[%emt 0:00:36]} 6. Nbd2 {[%emt 0:00:49]} Nge7 {[%emt 0:01:40]} 7. g3 {[%emt 0:12:34]} d6 $146 {[%emt 0:00:26]} ({Predecessor:} 7... b6 8. Bg2 Bb7 9. O-O O-O 10. c3 d6 {0-1 (67) Merenyi,G (2075)-Lorincz,O Aggtelek 1997}) 8. Bg2 {[%emt 0:00:09]} O-O {[%emt 0:02:04]} 9. O-O {[%emt 0:00:06]} Rb8 {[%emt 0:00:08]} 10. Nc4 {[%emt 0:04:08]} b5 {[%emt 0:03:06]} 11. Ne3 {[%emt 0:00:11]} a5 {[%emt 0:00:36]} 12. Kh1 {[%emt 0:04:50]} Ba6 {[%emt 0:02:19]} 13. f5 {[%emt 0:03:25]} exf5 {[%emt 0:04:54]} 14. exf5 {[%emt 0:00:42]} Nxf5 {[%emt 0:00:20]} 15. Nxf5 {[%emt 0:00:57]} gxf5 {[%emt 0:00:01] [#]} 16. Nh4 $1 {[%emt 0:03:29]} Nd4 {[%emt 0:01:30]} 17. Qf2 {[%emt 0:05:55]} Bb7 {[%emt 0:05:18]} 18. Nxf5 {[%emt 0:04:41]} Nxf5 {[%emt 0:01:02]} 19. Qxf5 {[%emt 0:00:41]} Bxg2+ {[%emt 0:00:34]} 20. Kxg2 {[%emt 0:00:05]} Qc8 {[%emt 0:01:18]} 21. Qxc8 {[%emt 0:13:52]} Rbxc8 {[%emt 0:00:52]} 22. Bf4 {[%emt 0:15:05]} Rc6 {[%emt 0:06:12]} 23. Rae1 {[%emt 0:08:00]} b4 {[%emt 0:00:27]} 24. b3 {[%emt 0:00:37]} Ra6 {[%emt 0:34:13]} 25. Re7 {[%emt 0:01:26]} Bf6 {[%emt 0:00:25]} 26. Rd7 {[%emt 0:01:11]} Rd8 {[%emt 0:00:56]} 27. Rxd8+ {[%emt 0:00:23]} Bxd8 {[%emt 0:00:01]} 28. Re1 {[%emt 0:00:20]} Kg7 {[%emt 0:00:17]} 29. Kf3 {[%emt 0:03:26]} Bf6 {[%emt 0:01:15]} 30. Ke4 {[%emt 0:00:34]} Be5 {[%emt 0:10:56]} 31. Bxe5+ {[%emt 0:08:36]} dxe5 {[%emt 0:00:01]} 32. Kd5 {[%emt 0:00:09]} f6 {[%emt 0:00:01]} 33. Kxc5 {[%emt 0:00:34]} Ra8 {[%emt 0:00:29]} 34. Kb5 {[%emt 0:00:48]} Kf7 {[%emt 0:00:32]} 35. Re4 {[%emt 0:00:18]} Ke6 {[%emt 0:01:16]} 36. Rc4 {[%emt 0:02:01]} ({White should play} 36. g4 $16) 36... f5 {[%emt 0:00:27]} 37. Rc7 $2 {[%emt 0:04:31]} (37. Rc6+ $16 {stays on course.} Kd5 38. Rf6) 37... e4 {[%emt 0:02:30]} 38. dxe4 {[%emt 0:00:15]} ({But not} 38. Rxh7 $2 e3 $19) 38... fxe4 {[%emt 0:00:01]} 39. Kc4 {[%emt 0:00:53] [#]} Rd8 $1 {[%emt 0:00:12]} 40. Rxh7 $2 {[%emt 0:00:33]} (40. Rc6+ Kf5 41. Rc5+ {[%mdl 64] Double Attack} Kg4 42. Re5 (42. Rxa5 Re8 $17)) 40... e3 {[%emt 0:00:19]} 41. Rh4 {[%emt 0:01:01] [#]} Ke5 $1 {[%emt 0:01:06]} 42. Rh7 {[%emt 0:01:32]} (42. Rh5+ $142 Ke4 43. Rh4+ Kf3 44. Rf4+ Ke2 45. Rf5) 42... Rd4+ {[%emt 0:00:47]} 43. Kc5 {[%emt 0:01:36]} Re4 {[%emt 0:00:01]} 44. Re7+ {[%emt 0:00:25]} Kf5 {[%emt 0:00:13]} 45. Rf7+ {[%emt 0:00:36]} Kg4 {[%emt 0:00:40]} 46. Rf1 {[%emt 0:00:34]} e2 {[%emt 0:00:01]} 47. Re1 {[%emt 0:00:01]} Kf3 {[%emt 0:00:11]} 48. Kb5 {[%emt 0:00:32]} Re5+ {[%emt 0:00:12]} 49. Ka4 {[%emt 0:00:45]} Kf2 {[%emt 0:01:03]} 50. Rc1 {[%emt 0:00:22]} Rd5 {[%emt 0:00:30]} 51. c4 {[%emt 0:00:09]} bxc3 {[%emt 0:00:36]} 52. b4 {[%emt 0:00:41]} e1=Q {[%emt 0:00:32]} 53. Rxe1 {[%emt 0:00:02]} Kxe1 {[%emt 0:00:01]} 0-1

[Event "Gibraltar Amateurs B 2019"]
[Site "Caleta"]
[Date "2019.01.28"]
[Round "3"]
[White "Johansson, Daniel 1984"]
[Black "Longdin, Michael"]
[Result "1/2-1/2"]
[ECO "B20"]
[WhiteElo "1859"]
[BlackElo "1735"]
[Annotator "NA"]
[PlyCount "100"]
[EventDate "2019.01.18"]
[EventType "swiss"]
[EventCountry "GGB"]
[SourceTitle "playchess.com"]
[Source "ChessBase"]
[SourceQuality "1"]
[TimeControl "6600+10"]

1. e4 {[%emt 0:09:15]} c5 {[%emt 0:00:00]} 2. g3 {[%emt 0:00:14]} d5 {[%emt 0:01:00]} 3. Nc3 {[%emt 0:00:58]} d4 {[%emt 0:01:21] B20: Sicilian: Unusual White 2nd moves} 4. Nce2 {[%emt 0:00:14]} Nc6 {[%emt 0:02:14]} 5. d3 {[%emt 0:00:35]} Bg4 {[%emt 0:02:59]} (5... h5 6. h4 Nf6 7. Bg5 c4 8. Bh3 Qa5+ 9. Kf1 cxd3 10. cxd3 Ng4 11. Nf3 e5 {½-½ (45) Novikov,S (2565)-Ponkratov,P (2585) Moscow 2010}) 6. h3 {[%emt 0:00:46]} Bh5 {[%emt 0:02:19]} 7. f4 {[%emt 0:04:38]} f6 $146 {[%emt 0:02:50]} ({Predecessor:} 7... e5 8. Bg2 Bd6 9. g4 Qh4+ 10. Kf1 exf4 11. gxh5 Ne5 12. Nf3 Nxf3 13. Bxf3 {1-0 (20) Gudok,V (1802)-Cole,S (1229) LSS email 2013}) 8. Bg2 {[%emt 0:02:23]} e5 {[%emt 0:04:41]} 9. Nf3 {[%emt 0:03:40]} Bd6 {[%emt 0:03:13]} 10. c4 {[%emt 0:08:38]} dxc3 {[%emt 0:06:28]} 11. bxc3 {[%emt 0:00:23]} Nge7 {[%emt 0:04:18]} 12. O-O {[%emt 0:02:15]} O-O {[%emt 0:02:00]} 13. Qb3+ {[%emt 0:06:51]} Kh8 {[%emt 0:03:15]} 14. Qxb7 {[%emt 0:05:12]} Rb8 {[%emt 0:02:20]} 15. Qa6 {[%emt 0:00:27]} Rb6 {[%emt 0:01:42]} 16. Qa4 {[%emt 0:00:49]} exf4 {[%emt 0:15:51]} 17. Bxf4 {[%emt 0:07:51]} g5 {[%emt 0:15:24]} 18. Bxd6 {[%emt 0:04:26]} Qxd6 {[%emt 0:00:06]} 19. Qc2 {[%emt 0:23:18]} Rd8 {[%emt 0:04:39]} ({Black should play} 19... Rfb8 $11) 20. g4 {[%emt 0:03:34]} Bf7 {[%emt 0:01:39]} 21. Rfd1 {[%emt 0:02:34]} ({White should play} 21. d4 $16) 21... h5 {[%emt 0:06:29]} 22. d4 {[%emt 0:03:04]} hxg4 {[%emt 0:04:45]} 23. hxg4 {[%emt 0:04:05]} Bg6 {[%emt 0:05:11]} 24. Kf2 {[%emt 0:05:14]} (24. Qc1 $14) 24... cxd4 {[%emt 0:04:04]} 25. cxd4 {[%emt 0:06:41]} Nb4 {[%emt 0:01:05]} 26. Qc5 {[%emt 0:00:58]} (26. Rh1+ $11 Kg8 27. Qd2) 26... Bxe4 {[%emt 0:02:35]} ({Black should try} 26... Qe6 $1 $15 27. d5 Qxe4) 27. Qxd6 {[%emt 0:01:23]} Rbxd6 {[%emt 0:00:56] [#]} 28. Nxg5 $1 {[%emt 0:00:42]} fxg5 {[%emt 0:01:47]} 29. Bxe4 {[%emt 0:00:06]} Rf8+ {[%emt 0:01:26]} 30. Kg3 {[%emt 0:01:18]} Kg7 {[%emt 0:01:22]} (30... Re6 $11 31. Nc3 (31. Rh1+ Kg7 $15) 31... Rc8) 31. a3 {[%emt 0:00:51]} ({White should play} 31. Bf3 $16) 31... Nbd5 {[%emt 0:00:41]} 32. Bxd5 {[%emt 0:00:19]} Nxd5 {[%emt 0:00:34]} 33. Rac1 {[%emt 0:00:23]} Re6 {[%emt 0:00:59]} 34. Rd2 {[%emt 0:00:48]} ({White should play} 34. Ng1 $1 $15) 34... Re3+ {[%emt 0:00:24]} 35. Kg2 {[%emt 0:00:34] [#]} (35. Kh2 $17 {was worth a try.}) 35... Rxa3 {[%emt 0:00:15]} (35... Rxe2+ $1 $19 {[%mdl 512]} 36. Rxe2 Nf4+ {[%mdl 64] Double Attack} 37. Kf3 Nd3+ {[%mdl 64] Discovered Attack} 38. Ke3 Nxc1) 36. Rb1 {[%emt 0:00:21]} Ne3+ {[%emt 0:00:15]} 37. Kg1 {[%emt 0:00:06]} Nxg4 {[%emt 0:00:23]} 38. d5 {[%emt 0:00:05]} Rf2 {[%emt 0:00:52]} 39. Rbd1 {[%emt 0:00:20]} Re3 {[%emt 0:00:34]} 40. d6 {[%emt 0:00:06]} Re8 {[%emt 0:00:14]} 41. d7 {[%emt 0:00:02]} Rd8 {[%emt 0:00:01]} 42. Rd4 {[%emt 0:00:07]} Rxe2 {[%emt 0:00:09]} 43. Rxg4 {[%emt 0:00:05]} Kg6 {[%emt 0:00:17]} 44. Rd5 {[%emt 0:00:01]} a5 {[%emt 0:00:30]} 45. Rgxg5+ {[%emt 0:00:05]} Kf6 {[%emt 0:00:02]} 46. Rg4 {[%emt 0:00:21]} Ke6 {[%emt 0:00:27]} 47. Rgd4 {[%emt 0:00:16]} a4 {[%emt 0:00:10]} 48. Ra5 {[%emt 0:00:20]} Ra2 {[%emt 0:00:48]} 49. Raxa4 $11 {[%emt 0:00:16]} Rxa4 {[%emt 0:00:17]} 50. Rxa4 {[%emt 0:00:03]} Ke5 {[%emt 0:00:15]} 1/2-1/2

[Event "Gibraltar Amateurs B 2019"]
[Site "Caleta"]
[Date "2019.01.28"]
[Round "3"]
[White "Lane, Ryan"]
[Black "Deus, Pedro"]
[Result "1-0"]
[ECO "C45"]
[WhiteElo "1851"]
[BlackElo "1729"]
[Annotator "NA"]
[PlyCount "27"]
[EventDate "2019.01.18"]
[EventType "swiss"]
[EventCountry "GGB"]
[SourceTitle "playchess.com"]
[Source "ChessBase"]
[SourceQuality "1"]
[TimeControl "6600+10"]

{[%evp 8,27,52,32767,32767,32767,49,65,32767,32767,32767,32767,32767,32767,106,32767,32767,32767,32767,862,1880,1333]} 1. e4 {[%emt 0:02:48]} e5 {[%emt 0:00:00]} 2. Nf3 {[%emt 0:00:05]} Nc6 {[%emt 0:00:00]} 3. d4 {[%emt 0:00:09]} exd4 {[%emt 0:00:04]} 4. Nxd4 {[%emt 0:00:05]} Qh4 {[%emt 0:00:05]} 5. Nc3 {[%emt 0:01:48]} Bb4 {[%emt 0:00:07]} 6. Be2 {[%emt 0:04:11]} Qxe4 {[%emt 0:00:29]} 7. Ndb5 $1 {[%emt 0:01:10]} Bxc3+ {[%emt 0:00:39]} 8. bxc3 {[%emt 0:00:09]} Kd8 {[%emt 0:00:08]} 9. O-O {[%emt 0:00:55]} Nf6 {[%emt 0:01:19]} 10. Re1 {[%emt 0:01:40]} Re8 {[%emt 0:06:50] LiveBook: 4 Games} 11. Bg5 {[%emt 0:05:26]} Qe5 {[%emt 0:08:26]} 12. Qd2 {[%emt 0:01:31]} h6 {[%emt 0:02:45]} 13. Bf4 {[%emt 0:00:18]} Qc5 $18 {[%emt 0:09:54]} 14. Bxc7+ {[%emt 0:00:09] Qe5 [%emt 00:00:45]} 1-0